bitfinex/quotes_SOLUSD_20251202
["timestamp","ask_amount","ask_price","bid_price","bid_amount"]
[1764709339331,8.04,138.55,138.53,13.34597042]
[1764709339518,8.04,138.55,138.54,12.55597042]
[1764709339715,8.04,138.55,138.54,0.69]
[1764709339897,3.76884908,138.59,138.54,13.24597042]
[1764709340099,104.5,138.61,138.54,13.24597042]
[1764709340100,7.93354815,138.63,138.58,12.55597042]
[1764709340302,8.04,138.62,138.58,12.55597042]
[1764709340502,8.04,138.62,138.6,12.55597042]
[1764709340503,11.80786687,138.62,138.6,12.55597042]
[1764709340813,8.04,138.62,138.6,12.55597042]
[1764709341011,8.04,138.62,138.6,13.24597042]
[1764709341413,8.04,138.62,138.61,12.55597042]
[1764709341620,8.04,138.62,138.6,13.24597042]
[1764709342400,8.04,138.62,138.6,0.69]
[1764709342599,8.04,138.62,138.6,13.24597042]
[1764709343624,8.04,138.62,138.6,12.55597042]
[1764709344412,8.04,138.62,138.61,12.55597042]
[1764709344813,8.04,138.62,138.6,13.24597042]
[1764709346803,17.05427252,138.62,138.59,0.69]
[1764709347033,17.05427252,138.62,138.59,13.24597042]
[1764709347231,9.84,138.62,138.59,13.24597042]
[1764709347430,10.98034258,138.64,138.6,12.55597042]
[1764709347638,8.04,138.63,138.61,12.55597042]
[1764709347823,8.04,138.63,138.6,12.55597042]
[1764709348129,8.04,138.63,138.6,13.24597042]
[1764709348930,15.25352633,138.63,138.6,13.24597042]
[1764709350323,8.04,138.63,138.61,12.55597042]
[1764709350916,8.04,138.63,138.61,13.24597042]
[1764709351528,15.2534876,138.63,138.61,12.55597042]
[1764709352316,1.8,138.63,138.62,13.24597042]
[1764709352926,1.8,138.63,138.61,12.55597042]
[1764709353238,1.8,138.63,138.61,13.24597042]
[1764709353447,1.8,138.63,138.62,12.55597042]
[1764709354532,1.8,138.63,138.62,7.38271845]
[1764709355339,1.8,138.63,138.61,8.07271845]
[1764709355528,8.04,138.62,138.6,7.38271845]
[1764709355935,8.04,138.62,138.61,7.38271845]
[1764709357022,1.8,138.61,138.6,8.03271845]
[1764709357434,1.8,138.61,138.6,15.24772566]
[1764709358743,1.8,138.61,138.6,0.65]
[1764709358918,1.8,138.61,138.6,8.03271845]
[1764709359343,1.8,138.61,138.6,15.24772566]
[1764709364033,1.8,138.61,138.6,7.86500721]
[1764709364337,1.8,138.61,138.6,11.01559045]
[1764709365836,1.8,138.61,138.6,3.80058324]
[1764709366549,1.8,138.61,138.6,3.15058324]
[1764709366878,1.8,138.61,138.6,10.36559045]
[1764709368537,1.8,138.61,138.6,11.08559045]
[1764709369059,1.8,138.63,138.6,11.08559045]
[1764709369228,1.8,138.63,138.62,3.15058324]
[1764709369948,1.8,138.63,138.62,3.87058324]
[1764709370342,1.8,138.63,138.62,11.08454947]
[1764709374179,1.8,138.65,138.62,29.11946506]
[1764709374355,1.8,138.65,138.64,3.15058324]
[1764709374672,2.51,138.65,138.64,3.15058324]
[1764709374871,2.51,138.65,138.63,3.15058324]
[1764709376170,2.51,138.65,138.63,10.36381638]
[1764709376370,2.51,138.64,138.62,3.15058324]
[1764709377543,1.8,138.64,138.62,3.15058324]
[1764709377975,2.51,138.64,138.62,3.15058324]
[1764709379348,2.51,138.64,138.62,10.36452812]
[1764709379867,1.8,138.64,138.62,10.36452812]
[1764709380053,0.71,138.63,138.62,10.36452812]
[1764709380252,1.8,138.64,138.62,10.36452812]
[1764709380566,2.51,138.64,138.62,10.36452812]
[1764709381162,2.51,138.64,138.62,3.15058324]
[1764709382168,1.8,138.63,138.62,7.93386127]
[1764709382369,1.8,138.63,138.62,11.08444451]
[1764709382877,1.8,138.63,138.62,10.36444451]
[1764709383358,1.8,138.63,138.62,11.08444451]
[1764709383969,1.8,138.63,138.62,10.36444451]
[1764709384282,1.8,138.63,138.62,11.08444451]
[1764709384575,8.73,138.68,138.62,29.1193601]
[1764709384777,8.73,138.68,138.66,3.15058324]
[1764709385153,0.71,138.67,138.66,3.15058324]
[1764709385762,0.71,138.67,138.65,10.36252954]
[1764709386159,0.71,138.67,138.65,7.2119463]
[1764709386981,0.71,138.67,138.64,7.21292556]
[1764709388156,8.73,138.68,138.64,3.87058324]
[1764709388782,106.3,138.69,138.66,3.15058324]
[1764709388963,106.3,138.69,138.67,3.87058324]
[1764709389158,106.3,138.69,138.67,3.15058324]
[1764709389564,8.02,138.7,138.67,3.15058324]
[1764709389772,8.73,138.7,138.67,3.15058324]
[1764709390280,8.02,138.7,138.68,7.21084511]
[1764709390874,8.73,138.7,138.68,7.21084511]
[1764709391385,8.02,138.7,138.68,7.21084511]
[1764709391981,8.02,138.7,138.67,3.87058324]
[1764709392288,0.69,138.69,138.66,10.3620367]
[1764709392466,8.02,138.7,138.66,11.0320367]
[1764709392667,8.71,138.7,138.66,11.0320367]
[1764709392867,8.02,138.7,138.66,11.0320367]
[1764709393069,8.71,138.7,138.66,29.06174966]
[1764709394774,8.71,138.7,138.67,3.15058324]
[1764709394971,8.02,138.7,138.67,3.82058324]
[1764709395160,8.02,138.7,138.68,3.15058324]
[1764709395491,8.02,138.7,138.67,0.67]
[1764709395667,1.8,138.71,138.67,0.67]
[1764709396187,8.02,138.72,138.67,0.67]
[1764709396487,1.8,138.74,138.71,3.15058324]
[1764709396788,2.0,138.77,138.73,3.15058324]
[1764709396966,0.2,138.77,138.76,3.15058324]
[1764709398296,0.2,138.77,138.76,3.82058324]
[1764709398583,0.2,138.77,138.76,11.02727104]
[1764709398974,0.2,138.77,138.76,19.83721596]
[1764709399162,1e-08,138.77,138.76,19.83721596]
[1764709402285,1e-08,138.77,138.76,7.8766878]
[1764709402478,1e-08,138.77,138.76,11.02727104]
[1764709403669,1e-08,138.77,138.76,10.35727104]
[1764709403875,1e-08,138.77,138.76,7.8766878]
[1764709404102,1e-08,138.77,138.76,11.02727104]
[1764709404400,0.39000001,138.8,138.76,11.02727104]
[1764709404970,7.20374472,138.82,138.77,0.67]
[1764709405698,15.42313336,138.83,138.8,3.15058324]
[1764709406197,0.69,138.82,138.79,3.15058324]
[1764709406705,0.69,138.82,138.76,7.8766878]
[1764709406931,0.69,138.82,138.78,3.15058324]
[1764709407198,7.89381696,138.82,138.78,3.15058324]
[1764709407402,3.15058324,138.8,138.72,0.67]
[1764709407581,3.15058324,138.76,138.7,7.87970099]
[1764709407778,0.69,138.75,138.7,11.03028423]
[1764709407981,0.69,138.75,138.71,3.15058324]
[1764709408213,0.69,138.75,138.71,3.82058324]
[1764709409375,0.69,138.75,138.72,7.20876585]
[1764709409572,7.89730205,138.75,138.7,3.15058324]
[1764709410002,0.69,138.74,138.7,3.15058324]
[1764709410179,0.69,138.74,138.71,3.15058324]
[1764709410503,0.69,138.76,138.71,3.82058324]
[1764709410707,0.69,138.75,138.71,3.82058324]
[1764709411005,0.69,138.75,138.71,3.15058324]
[1764709411886,0.69,138.75,138.72,7.20876585]
[1764709412508,7.89721867,138.75,138.72,7.20876585]
[1764709413108,7.89721867,138.75,138.71,7.20913882]
[1764709413308,0.69,138.74,138.71,7.20913882]
[1764709413487,0.69,138.74,138.71,10.35972206]
[1764709416514,0.69,138.74,138.71,4.91487225]
[1764709417016,0.67,138.76,138.73,4.91487225]
[1764709417318,8.02,138.79,138.74,4.91487225]
[1764709417524,0.67,138.77,138.74,4.91487225]
[1764709417724,8.02,138.79,138.76,4.91487225]
[1764709418014,0.67,138.81,138.78,4.91487225]
[1764709418189,0.67,138.81,138.79,4.91487225]
[1764709418594,0.67,138.81,138.78,12.1201633]
[1764709420198,0.67,138.81,138.78,11.6201633]
[1764709420612,0.67,138.81,138.79,4.91487225]
[1764709420820,8.02,138.82,138.79,4.91487225]
[1764709421117,0.67,138.81,138.79,4.91487225]
[1764709421716,0.2,138.83,138.8,4.91487225]
[1764709421947,0.91,138.83,138.82,4.91487225]
[1764709422214,0.71,138.82,138.81,4.91487225]
[1764709423023,0.71,138.82,138.8,7.20454621]
[1764709423193,0.71,138.82,138.8,4.91487225]
[1764709423706,0.71,138.82,138.81,4.91487225]
[1764709425608,8.71,138.82,138.79,4.91487225]
[1764709425809,15.9136118,138.82,138.79,4.91487225]
[1764709426003,0.71,138.81,138.79,4.91487225]
[1764709426422,0.71,138.81,138.79,12.11993127]
[1764709427820,0.71,138.81,138.8,4.91487225]
[1764709428826,0.71,138.81,138.79,4.91487225]
[1764709429023,0.71,138.81,138.7,15.20369333]
[1764709429224,8.71,138.82,138.79,4.91487225]
[1764709429455,0.71,138.81,138.79,4.91487225]
[1764709430119,8.71,138.81,138.79,4.91487225]
[1764709430624,8.71,138.81,138.79,12.11999321]
[1764709431005,8.71,138.81,138.79,4.91487225]
[1764709434301,8.0,138.81,138.8,4.91487225]
[1764709435822,8.0,138.81,138.8,12.1194832]
[1764709439247,0.91,138.83,138.8,12.8194832]
[1764709439411,0.2,138.83,138.82,4.91487225]
[1764709439616,0.91,138.83,138.82,4.91487225]
[1764709440010,0.2,138.83,138.82,5.61487225]
[1764709441318,0.2,138.83,138.82,12.81844522]
[1764709441809,0.2,138.87,138.86,4.91487225]
[1764709442641,0.2,138.87,138.86,5.61487225]
[1764709442830,0.2,138.87,138.86,4.91487225]
[1764709443232,0.2,138.87,138.86,5.61487225]
[1764709443548,0.2,138.87,138.86,12.81637016]
[1764709444742,0.2,138.87,138.86,4.91487225]
[1764709444937,0.91,138.87,138.86,4.91487225]
[1764709445221,0.91,138.87,138.83,7.20266294]
[1764709445222,8.11097933,138.87,138.83,4.91487225]
[1764709445423,8.71,138.86,138.8,7.20453385]
[1764709445623,8.71,138.86,138.84,4.91487225]
[1764709445821,8.0,138.86,138.84,4.91487225]
[1764709446034,0.71,138.85,138.84,4.91487225]
[1764709446248,8.0,138.86,138.84,4.91487225]
[1764709446550,0.71,138.85,138.82,0.7]
[1764709447645,0.71,138.85,138.84,4.91487225]
[1764709450257,8.71,138.86,138.84,4.91487225]
[1764709450549,8.71,138.86,138.85,4.91487225]
[1764709451765,8.71,138.86,138.83,4.91487225]
[1764709451766,15.91153357,138.86,138.83,4.91487225]
[1764709452015,7.20253529,138.84,138.81,4.91487225]
[1764709452450,0.7,138.83,138.81,4.91487225]
[1764709452638,0.7,138.83,138.82,4.91487225]
[1764709452840,0.7,138.83,138.81,4.91487225]
[1764709453667,8.7,138.83,138.8,4.91487225]
[1764709454160,0.7,138.82,138.8,4.91487225]
[1764709454326,0.7,138.82,138.8,12.11946937]
[1764709454962,0.2,138.82,138.8,12.11946937]
[1764709456182,8.0,138.83,138.81,4.91487225]
[1764709456354,15.20307133,138.83,138.81,4.91487225]
[1764709457069,15.90307133,138.83,138.81,4.91487225]
[1764709457265,15.20307133,138.83,138.81,4.91487225]
[1764709457469,0.7,138.82,138.8,4.91487225]
[1764709458951,0.7,138.82,138.79,7.20496298]
[1764709459287,7.20409192,138.81,138.75,23.51561745]
[1764709459444,8.0,138.8,138.76,0.68]
[1764709459644,8.0,138.8,138.79,4.91487225]
[1764709459849,8.7,138.8,138.79,4.91487225]
[1764709460065,8.7,138.8,138.78,4.91487225]
[1764709460270,0.7,138.79,138.78,4.91487225]
[1764709460475,0.7,138.79,138.77,4.91487225]
[1764709461570,2.5,138.79,138.76,4.91487225]
[1764709461876,1.8,138.79,138.78,4.91487225]
[1764709462653,8.0,138.8,138.78,5.59487225]
[1764709462971,8.0,138.8,138.79,4.91487225]
[1764709463860,8.0,138.8,138.79,12.1200023]
[1764709464264,8.0,138.8,138.79,4.91487225]
[1764709465047,8.0,138.8,138.78,7.20529955]
[1764709465270,1.8,138.81,138.79,4.91487225]
[1764709465484,2.5,138.81,138.79,4.91487225]
[1764709465664,8.80994492,138.79,138.75,4.91487225]
[1764709465862,7.20616848,138.77,138.74,4.91487225]
[1764709466257,7.20616848,138.77,138.72,0.68]
[1764709466258,8.0,138.78,138.75,0.68]
[1764709466477,8.7,138.78,138.76,4.91487225]
[1764709466674,0.7,138.77,138.76,4.91487225]
[1764709467023,0.7,138.77,138.75,4.91487225]
[1764709467773,7.90623843,138.77,138.75,4.91487225]
[1764709468574,7.90618714,138.77,138.75,4.91487225]
[1764709470258,7.90618714,138.77,138.74,4.91487225]
[1764709471276,8.0,138.78,138.76,4.91487225]
[1764709471580,8.0,138.78,138.75,0.68]
[1764709471581,8.0,138.78,138.77,4.91487225]
[1764709471955,8.7,138.78,138.75,4.91487225]
[1764709472163,0.7,138.77,138.75,4.91487225]
[1764709472775,15.90567539,138.78,138.75,12.12205419]
[1764709472971,8.7,138.78,138.75,12.12205419]
[1764709473558,15.90565702,138.78,138.75,12.12205419]
[1764709474377,15.90565702,138.78,138.76,4.91487225]
[1764709474858,8.80994492,138.76,138.7,0.69]
[1764709475053,13.72481717,138.74,138.69,4.91487225]
[1764709475255,8.80994492,138.74,138.7,4.91487225]
[1764709475460,0.71,138.73,138.7,4.91487225]
[1764709475779,8.0,138.72,138.7,4.91487225]
[1764709476472,8.0,138.72,138.7,3.14628225]
[1764709477470,0.66,138.71,138.69,3.14628225]
[1764709478285,0.66,138.71,138.69,10.35638361]
[1764709478582,0.66,138.71,138.68,10.35703668]
[1764709479090,0.66,138.71,138.69,3.14628225]
[1764709480295,0.66,138.71,138.69,10.35642702]
[1764709485192,0.66,138.71,138.69,3.14628225]
[1764709485498,8.80994492,138.7,138.65,3.24628225]
[1764709485673,8.0,138.69,138.65,3.24628225]
[1764709485885,0.67,138.68,138.65,3.24628225]
[1764709486610,0.67,138.68,138.65,10.45853983]
[1764709486809,7.88128596,138.68,138.65,0.1]
[1764709487108,0.67,138.68,138.65,3.24628225]
[1764709487807,7.88094215,138.68,138.65,3.24628225]
[1764709488009,8.0,138.69,138.66,3.86628225]
[1764709488216,8.67,138.69,138.66,3.86628225]
[1764709488413,8.67,138.69,138.66,3.14628225]
[1764709489110,8.0,138.69,138.68,3.14628225]
[1764709489316,8.0,138.72,138.68,3.14628225]
[1764709489569,8.0,138.72,138.7,3.14628225]
[1764709490080,8.0,138.72,138.7,0.72]
[1764709490323,0.67,138.71,138.66,25.96155593]
[1764709490530,8.67,138.72,138.69,3.14628225]
[1764709491008,8.67,138.72,138.7,10.35608758]
[1764709491009,8.0,138.72,138.7,10.35608758]
[1764709491618,8.0,138.72,138.7,7.20980533]
[1764709492311,8.0,138.72,138.69,11.07636258]
[1764709494391,8.0,138.72,138.7,3.14628225]
[1764709495215,8.0,138.72,138.7,11.07607623]
[1764709495387,8.67,138.75,138.71,3.86628225]
[1764709495588,8.0,138.75,138.72,3.14628225]
[1764709495809,8.0,138.75,138.73,3.14628225]
[1764709496010,8.0,138.75,138.73,3.86628225]
[1764709496421,8.0,138.75,138.73,0.72]
[1764709496914,0.67,138.74,138.7,3.86628225]
[1764709497123,0.67,138.74,138.7,3.14628225]
[1764709497331,0.67,138.74,138.68,26.02637278]
[1764709497332,0.67,138.74,138.71,11.07550223]
[1764709497714,0.67,138.74,138.72,3.14628225]
[1764709498728,8.0,138.75,138.72,3.86628225]
[1764709498938,8.67,138.75,138.72,3.86628225]
[1764709499305,8.67,138.75,138.72,11.07488219]
[1764709500347,0.67,138.74,138.65,16.90994492]
[1764709500647,3.14628225,138.71,138.66,3.14628225]
[1764709500829,27.45514625,138.72,138.67,3.14628225]
[1764709500999,0.67,138.71,138.67,3.14628225]
[1764709501199,0.67,138.71,138.67,11.07762189]
[1764709501395,31.51812524,138.72,138.68,3.86628225]
[1764709501694,32.18812524,138.72,138.68,3.86628225]
[1764709501900,0.67,138.76,138.71,3.14628225]
[1764709502100,0.67,138.76,138.72,3.14628225]
[1764709502325,27.332173,138.76,138.69,0.72]
[1764709502497,27.332173,138.76,138.7,3.14628225]
[1764709502498,3.76419892,138.75,138.7,3.14628225]
[1764709502699,4.43419892,138.75,138.71,3.14628225]
[1764709502932,4.43419892,138.75,138.72,3.14628225]
[1764709503312,3.76419892,138.75,138.72,7.92876057]
[1764709503625,0.67,138.79,138.74,3.14628225]
[1764709503847,4.43352228,138.79,138.74,3.14628225]
[1764709504006,4.43352228,138.79,138.75,0.72]
[1764709504406,7.57980453,138.79,138.75,0.2914]
[1764709504628,11.02220404,138.78,138.72,8.0]
[1764709504833,25.89004486,138.78,138.72,3.14628225]
[1764709505130,24.308864,138.8,138.77,3.14628225]
[1764709505131,8.0,138.8,138.77,3.14628225]
[1764709505444,16.978864,138.81,138.77,3.14628225]
[1764709505601,11.63613009,138.82,138.77,3.14628225]
[1764709505807,16.67,138.84,138.79,3.14628225]
[1764709506002,12.43209079,138.84,138.79,3.14628225]
[1764709506234,0.67,138.83,138.79,3.14628225]
[1764709506416,0.67,138.83,138.79,3.86628225]
[1764709506729,3.76209079,138.84,138.8,0.72]
[1764709506937,11.63491486,138.84,138.8,0.72]
[1764709507233,3.76209079,138.84,138.81,3.14628225]
[1764709507416,11.01785207,138.86,138.81,3.86628225]
[1764709507619,3.81628225,138.85,138.81,0.72]
[1764709508224,14.10936936,138.86,138.81,0.72]
[1764709508435,11.63308711,138.86,138.81,3.86628225]
[1764709508839,11.63308711,138.86,138.82,0.72]
[1764709509717,10.96308711,138.86,138.82,0.72]
[1764709510031,10.96308711,138.86,138.82,3.86628225]
[1764709510406,0.2,138.87,138.83,3.14628225]
[1764709510609,7.40099969,138.87,138.83,3.86628225]
[1764709510848,8.07099969,138.87,138.83,3.86628225]
[1764709511022,8.07099969,138.87,138.83,3.14628225]
[1764709511334,8.07099969,138.87,138.84,0.72]
[1764709511554,8.07099969,138.87,138.83,3.14628225]
[1764709511715,8.07099969,138.87,138.83,3.86628225]
[1764709512144,8.07099969,138.87,138.84,0.7]
[1764709512344,0.2,138.87,138.84,0.7]
[1764709512924,7.40098251,138.87,138.84,0.7]
[1764709513160,8.12098251,138.87,138.84,0.7]
[1764709513345,8.12098251,138.87,138.83,10.34933158]
[1764709513662,8.12098251,138.87,138.83,11.04933158]
[1764709513853,8.12098251,138.87,138.83,3.84628225]
[1764709514052,3.86628225,138.86,138.83,8.0]
[1764709514437,0.72,138.85,138.83,8.0]
[1764709514636,0.72,138.85,138.82,8.0]
[1764709514868,0.72,138.85,138.82,8.7]
[1764709515765,7.20201355,138.86,138.82,8.7]
[1764709515933,7.92201355,138.86,138.82,8.7]
[1764709516135,7.92201355,138.86,138.83,0.7]
[1764709516537,0.72,138.85,138.82,8.7]
[1764709516740,11.0682958,138.86,138.82,8.7]
[1764709516930,7.92201355,138.86,138.82,8.7]
[1764709517534,0.2,138.87,138.83,0.7]
[1764709517740,0.2,138.87,138.85,3.14628225]
[1764709518257,0.2,138.87,138.85,3.84628225]
[1764709519167,0.2,138.87,138.85,3.14628225]
[1764709519350,0.2,138.87,138.86,0.7]
[1764709519740,0.2,138.87,138.85,10.34806942]
[1764709520044,0.2,138.87,138.85,11.04806942]
[1764709521146,0.2,138.87,138.85,3.84628225]
[1764709521342,0.2,138.87,138.86,11.84628225]
[1764709522161,0.2,138.89,138.86,11.84628225]
[1764709522351,0.2,138.89,138.88,3.14628225]
[1764709522552,0.2,138.89,138.88,23.3014285]
[1764709523261,0.2,138.89,138.88,30.50188932]
[1764709523767,0.2,138.9,138.89,8.80994492]
[1764709523967,0.2,138.91,138.89,12.65622717]
[1764709524148,0.2,138.91,138.9,20.65622717]
[1764709524474,0.2,138.93,138.92,16.308864]
[1764709524768,0.2,138.96,138.92,31.65451132]
[1764709525065,0.2,138.96,138.95,14.69129464]
[1764709525267,0.2,138.97,138.95,55.00693695]
[1764709525435,0.2,138.98,138.96,15.39129464]
[1764709525642,0.2,138.98,138.97,7.34564732]
[1764709525979,0.2,138.98,138.97,8.04564732]
[1764709526545,0.2,138.99,138.98,25.11880892]
[1764709526743,0.2,138.99,138.98,41.16445624]
[1764709527164,0.1,139.0,138.99,7.19476221]
[1764709527371,0.1,139.0,138.99,24.05035445]
[1764709527791,0.1,139.04,139.0,7.34564732]
[1764709527984,0.1,139.04,139.0,8.04564732]
[1764709528568,0.1,139.04,139.0,16.85559224]
[1764709529193,0.1,139.04,139.03,14.53833954]
[1764709529558,0.1,139.04,139.03,15.23833954]
[1764709531313,0.2,139.06,139.05,16.308864]
[1764709531513,0.2,139.06,139.05,31.65451132]
[1764709531694,0.2,139.06,139.05,32.35451132]
[1764709532132,0.2,139.06,139.05,39.70015864]
[1764709533318,0.2,139.06,139.05,46.89181631]
[1764709534913,0.92,139.06,139.01,17.98395119]
[1764709535122,0.92,139.06,139.05,7.34564732]
[1764709535322,0.92,139.06,139.02,17.008864]
[1764709535492,0.92,139.06,139.05,7.34564732]
[1764709536591,8.11121987,139.06,139.01,7.19354393]
[1764709536788,0.72,139.05,139.02,7.98]
[1764709537115,0.72,139.05,139.04,7.34564732]
[1764709538018,0.2,139.06,139.04,14.53773357]
[1764709538193,0.9,139.06,139.05,7.34564732]
[1764709538403,0.9,139.06,139.05,12.48962743]
[1764709538819,0.9,139.06,139.05,20.46962743]
[1764709540030,0.2,139.06,139.05,20.46962743]
[1764709540528,0.2,139.06,139.05,27.6612851]
[1764709540727,0.2,139.06,139.05,20.46962743]
[1764709540935,0.9,139.06,139.0,16.308864]
[1764709541130,0.9,139.06,139.01,7.19363969]
[1764709541317,0.7,139.05,139.03,12.48962743]
[1764709541524,0.7,139.05,139.04,7.98]
[1764709541727,0.2,139.06,139.04,20.46962743]
[1764709542023,0.86,139.06,139.05,12.48962743]
[1764709542699,0.86,139.06,139.04,7.98]
[1764709542700,0.86,139.06,139.04,20.46962743]
[1764709542906,0.66,139.05,139.04,7.98]
[1764709543115,0.66,139.05,139.04,20.46962743]
[1764709544030,0.66,139.05,139.04,12.48962743]
[1764709544237,0.66,139.05,139.04,20.46962743]
[1764709544612,0.66,139.05,139.04,27.66180234]
[1764709544928,0.66,139.05,139.04,19.68180234]
[1764709545136,0.66,139.05,139.04,27.66180234]
[1764709546526,0.66,139.05,139.04,20.06361651]
[1764709549310,0.2,139.06,139.04,20.06361651]
[1764709549540,0.2,139.06,139.05,4.8914416]
[1764709550237,0.2,139.06,139.05,20.06309927]
[1764709551350,0.2,139.06,139.05,20.76309927]
[1764709551715,0.2,139.06,139.05,20.06309927]
[1764709552038,0.2,139.06,139.05,7.98]
[1764709552039,0.86,139.06,139.05,7.98]
[1764709552340,0.86,139.06,139.05,20.06309927]
[1764709553411,0.2,139.06,139.05,20.06309927]
[1764709555628,0.2,139.06,139.05,12.08309927]
[1764709555831,0.2,139.06,139.05,15.17165767]
[1764709556134,0.86,139.06,139.03,25.17277606]
[1764709556312,0.86,139.06,139.04,12.8714416]
[1764709556514,0.66,139.05,139.04,12.8714416]
[1764709556709,0.66,139.05,139.03,7.19218018]
[1764709557041,0.66,139.05,139.02,4.8914416]
[1764709557335,0.66,139.05,139.01,4.8914416]
[1764709557840,7.85179773,139.05,139.01,7.19364996]
[1764709558323,0.66,139.04,139.01,7.19364996]
[1764709558706,0.66,139.04,139.01,12.08509156]
[1764709560243,0.66,139.04,139.02,4.8914416]
[1764709560740,0.66,139.04,139.02,12.8714416]
[1764709561130,0.2,139.06,139.03,4.8914416]
[1764709561338,0.86,139.06,139.03,4.8914416]
[1764709561517,0.2,139.06,139.02,7.98]
[1764709561717,0.66,139.05,139.04,4.8914416]
[1764709561940,0.2,139.06,139.04,4.8914416]
[1764709562238,0.2,139.06,139.05,20.76309927]
[1764709562615,0.2,139.06,139.05,15.17165767]
[1764709562815,0.2,139.06,139.03,23.50122982]
[1764709562816,0.86,139.06,139.03,23.50122982]
[1764709563130,0.86,139.06,139.03,12.08380742]
[1764709563309,0.66,139.05,139.03,12.08380742]
[1764709563709,0.66,139.05,139.03,20.06380742]
[1764709564144,0.66,139.05,139.03,12.08380742]
[1764709564341,0.66,139.05,139.03,20.06380742]
[1764709564722,0.2,139.06,139.04,4.8914416]
[1764709564924,0.86,139.06,139.05,4.8914416]
[1764709565545,1e-08,139.06,139.05,21.9003056]
[1764709566341,1e-08,139.06,139.05,29.09196327]
[1764709566529,1e-08,139.06,139.05,44.66124076]
[1764709568717,1e-08,139.06,139.05,43.96124076]
[1764709569333,1e-08,139.06,139.05,44.66124076]
[1764709571020,1e-08,139.06,139.05,36.68124076]
[1764709571219,1e-08,139.06,139.05,44.66124076]
[1764709571421,1e-08,139.06,139.05,19.67237676]
[1764709571616,1e-08,139.06,139.05,27.65237676]
[1764709573346,1e-08,139.06,139.05,28.31237676]
[1764709573743,1e-08,139.06,139.05,20.46071909]
[1764709574051,0.1,139.07,139.05,12.48071909]
[1764709574237,0.1,139.07,139.06,12.48071909]
[1764709574434,0.1,139.07,139.06,20.46071909]
[1764709574835,0.78,139.07,139.06,20.46071909]
[1764709575048,0.1,139.07,139.06,20.46071909]
[1764709576861,0.1,139.07,139.06,27.6518596]
[1764709577172,0.78,139.07,139.06,20.46071909]
[1764709577358,0.78,139.07,139.06,19.6718596]
[1764709578154,0.78,139.07,139.06,12.48071909]
[1764709578449,0.78,139.07,139.04,12.48071909]
[1764709578626,0.78,139.07,139.03,12.48071909]
[1764709578829,7.19114051,139.06,139.03,12.48071909]
[1764709579054,35.9807236,139.06,139.01,12.48071909]
[1764709579239,0.68,139.05,139.01,12.48071909]
[1764709579434,0.68,139.05,138.99,7.98]
[1764709579653,0.68,139.05,138.99,7.19452886]
[1764709579852,0.68,139.05,139.01,12.48071909]
[1764709580050,0.68,139.05,139.02,12.48071909]
[1764709580860,0.68,139.05,139.03,12.48071909]
[1764709581230,7.87178944,139.05,139.02,12.48071909]
[1764709581748,0.68,139.04,139.01,12.48071909]
[1764709582030,0.68,139.04,139.02,12.48071909]
[1764709582638,0.68,139.04,139.03,12.48071909]
[1764709583029,0.68,139.04,139.02,12.48071909]
[1764709583666,2.48,139.04,139.02,12.48071909]
[1764709583868,0.68,139.04,139.02,12.48071909]
[1764709584184,0.68,139.03,139.02,12.48071909]
[1764709586178,0.68,139.03,139.01,12.48071909]
[1764709587449,7.87269529,139.03,139.01,12.48071909]
[1764709587980,0.68,139.02,138.99,12.48071909]
[1764709588355,0.68,139.02,138.99,4.89549529]
[1764709588759,1.8,139.01,138.99,4.89549529]
[1764709589263,0.68,139.0,138.99,4.89549529]